Cogmind - Beta 14 @@@ ROGUE MODE // 2025.01.18 @ 23:36:43 Player: lazy_engineer Result: Destroyed by H-66 Slayer with Gauss Rifle Performance ------------- Evolutions (5) 2500 Regions Visited (9) 1800 Robots Destroyed (38) 190 Value Destroyed (1441) 1441 Prototype IDs (8) 160 Alien Tech Used (0) 0 Bonus (404) 404 TOTAL SCORE: 6495 Bonus ------- Follower Combat Kills 470 Friendly Fire -66 Cogmind --------- Core Integrity 0/1000 Matter 300/300 Energy 100/100 System Corruption 2% Temperature Cool (0) Movement Core (50) Location -5/Upper Caves Parts ------- > --- POWER (2) -------- (None) > --- PROPULSION (6) --- (None) > --- UTILITY (5) ------ (None) > --- WEAPON (4) ------- (None) > --- INVENTORY (5) ---- Advanced Heat Sink Medium Matter Pod (100) Thermal Shield System Shield Improved Datajack Peak State ------------ > --- POWER ------------ Momentum-Ion Engine > --- PROPULSION ------- Wheeled VTOL-Compact Exoskeleton > --- UTILITY ---------- Armored Scrap Engine Advanced Heat Sink Advanced Heat Sink Advanced Heat Sink > --- WEAPON ----------- Cycling KE HMG Construct/G Rapid Energy Phase Construct/C > --- INVENTORY -------- Medium Matter Pod Shield Generator System Shield Datajack Improved Datajack [Rating: 63] Favorites ----------- Power Constructs Engine Constructs Power Core Light Nuclear Core Propulsion Improved Treads Treads Improved Treads Leg Carbon-fiber Leg Wheel Constructs Utility Advanced Heat Sink Device Advanced Heat Sink Storage Medium Storage Unit Processor Signal Interpreter Protection Light Armor Plating Weapon Constructs Energy Gun Heavy EM Pulse Gun Energy Cannon Constructs Ballistic Gun Constructs Ballistic Cannon Slug Cannon Slashing Weapon Axe Special Melee Weapon Datajack Build | -11 -10 -10 -10 -8 -6 -6 -6 -5 -5 ------- Run | Yrd Mat Min Sub Rec Fac Low Low Fac Upp Slots Evolved 10 | . . . . . 8 . . 2 . Power 1 | . . . . . 1 . . . . Propulsion 4 | . . . . . 3 . . 1 . Utility 3 | . . . . . 3 . . . . Weapon 2 | . . . . . 1 . . 1 . Parts Attached 60 | 4 13 8 9 9 3 . 6 3 5 Power 6 | . 2 2 1 . . . . . 1 Engine 5 | . 2 1 1 . . . . . 1 Core 1 | . . 1 . . . . . . . Reactor . | . . . . . . . . . . Propulsion 9 | 2 2 . 1 . . . 2 . 2 Treads 5 | 2 2 . 1 . . . . . . Leg 2 | . . . . . . . . . 2 Wheel 2 | . . . . . . . 2 . . Hover . | . . . . . . . . . . Flight . | . . . . . . . . . . Utility 30 | . 5 6 5 6 3 . 3 2 . Device 19 | . . 4 4 4 3 . 2 2 . Storage 5 | . 2 2 . . . . 1 . . Processor 1 | . . . 1 . . . . . . Hackware . | . . . . . . . . . . Protection 5 | . 3 . . 2 . . . . . Artifact . | . . . . . . . . . . Weapon 15 | 2 4 . 2 3 . . 1 1 2 Energy Gun 6 | . 2 . . 2 . . . . 2 Energy Cannon . | . . . . . . . . . . Ballistic Gun 4 | 2 2 . . . . . . . . Ballistic Cannon 1 | . . . 1 . . . . . . Launcher . | . . . . . . . . . . Special Weapon . | . . . . . . . . . . Impact Weapon . | . . . . . . . . . . Slashing Weapon 1 | . . . . . . . . 1 . Piercing Weapon . | . . . . . . . . . . Special Melee Weapon 3 | . . . 1 1 . . 1 . . Unidentified Prototypes 2 | . . 1 . 1 . . . . . Parts Lost 24 | . . . 1 . . 4 9 . 10 Power 4 | . . . 1 . . 1 1 . 1 Propulsion 6 | . . . . . . 1 2 . 3 Utility 7 | . . . . . . 1 3 . 3 Weapon 7 | . . . . . . 1 3 . 3 Highest Loss Streak 8 | . . . 1 . . 4 8 . 5 To Critical Strikes 1 | . . . . . . . 1 . . Average Slot Usage (%) 69 | . 98 100 94 78 46 36 46 26 18 Engine 8 | . 13 11 12 12 6 . 4 . 1 Treads 12 | . 27 28 28 13 . . . . . Leg 3 | . . . . 6 6 6 5 . 6 Device 13 | . . 13 13 13 19 20 20 15 1 Storage 7 | . 13 14 14 6 . . 3 . . Protection 1 | . 13 . . . . . . . . Energy Gun 6 | . 2 14 13 9 6 . . . 5 Energy Cannon 1 | . . . . . . 2 7 . . Ballistic Gun 6 | . 25 14 1 6 2 . 2 . . Ballistic Cannon 3 | . . . 9 6 4 4 . . . Peak Build Rating 63 | 4 11 19 23 36 62 63 57 34 34 Average Rating 30 | 3 7 14 19 27 51 50 49 32 13 On Entrance 25 | . 4 11 12 22 36 62 49 22 34 Naked Turns 21 | . . . . . . . . . 21 Heaviest Build 59 | 3 21 24 28 28 24 21 59 6 17 Greatest Support 60 | 20 46 46 46 46 60 60 26 10 30 Greatest Overweight (x) 6 | . 6 . . 1 . . 2 . 1 Average Overweight (x) . | . . . . . . . . . . Largest Inventory Capacity 25 | 5 10 25 10 10 5 5 20 5 5 Average Capacity 8 | 5 8 10 10 7 5 5 13 5 5 Most Carried 11 | 5 10 11 10 10 5 5 6 5 5 Average Carried 6 | 3 6 9 9 5 2 5 5 4 5 Final Capacity 10 | 5 10 10 10 5 5 5 5 5 5 Final Carried 10 | 5 10 9 9 1 5 5 4 5 5 Scrap Engine Consumption 64 | . . . . 34 9 4 15 2 . Constructs Created 8 | . . . . 4 1 . 2 1 . Constructs Modified 14 | . . . . 6 2 4 2 . . Class Distribution -------------------- 57% | Mutant 20% | Construct 11% | Commander-Construct 9% | Commander-Mutant Dominant Class ---------------- Mutant | -10/Materials Mutant | -10/Mines Mutant | -10/Subcaves Commander-Construct | -8/Recycling Construct | -6/Factory Mutant | -6/Lower Caves Construct | -6/Lower Caves Mutant | -5/Factory Scavenger-Mutant | -5/Upper Caves Resources | -11 -10 -10 -10 -8 -6 -6 -6 -5 -5 ----------- Run | Yrd Mat Min Sub Rec Fac Low Low Fac Upp Matter Collected 1645 | 228 192 156 169 337 9 259 189 . 106 Remotely . | . . . . . . . . . . Salvage Created 1598 | 10 324 169 . 77 61 263 391 . 303 Parts 78 | 2 19 11 . 4 . 13 16 . 13 Haulers Intercepted . | . . . . . . . . . . Recyclers Shooed 3 | . . . . 1 . . 2 . . Parts Field Recycled . | . . . . . . . . . . Retrieved Matter . | . . . . . . . . . . Parts Self-Destructed 51 | . . . 12 . . 13 17 . 9 Prevented . | . . . . . . . . . . Kills | -11 -10 -10 -10 -8 -6 -6 -6 -5 -5 ------- Run | Yrd Mat Min Sub Rec Fac Low Low Fac Upp Combat Hostiles Destroyed 36 | . 7 6 . 1 1 6 9 . 6 Melee 2 | . . . . . . . . . 2 Guns 15 | . 7 2 . 1 1 . . . 4 Cannons 15 | . . . . . . 6 9 . . AOE 4 | . . 4 . . . . . . . Classes Destroyed 7 | 1 2 1 . 1 . 1 1 . . Tunneler 1 | 1 . . . . . . . . . Operator 1 | . 1 . . . . . . . . Swarmer 11 | . . 3 . . . 2 4 . 2 Grunt 17 | . 7 3 . . . 1 3 . 3 Brawler 2 | . . . . . . 2 . . . Duelist 2 | . . . . . . . 1 . 1 Sentry 4 | . . . . 1 1 1 1 . . Best Kill Streak 4 | 1 2 4 . 1 1 3 4 . 2 Combat Bots Only 4 | . 2 4 . 1 1 3 4 . 2 Max Kills in Single Turn 3 | 1 1 3 . 1 1 1 1 . 2 Gunslinging . | . . . . . . . . . . Exploded 3 | . . 3 . . . . . . . Melee 1 | . . . . . . . . . 1 Uniques/NPCs Destroyed . | . . . . . . . . . . Combat | -11 -10 -10 -10 -8 -6 -6 -6 -5 -5 -------- Run | Yrd Mat Min Sub Rec Fac Low Low Fac Upp Hostile Shots Fired 517 | . 54 43 4 3 18 116 157 5 117 Missed 157 | . 13 16 2 . 7 33 55 4 27 Damage Taken 6207 | . 529 364 122 140 79 1419 1902 118 1534 Core 1756 | . 101 54 . 65 12 130 373 33 988 Absorbed by Shields 91 | . . . . . . . 91 . . Regen/Repaired (Parts) 720 | . . . . 85 . 328 307 . . Core Remaining (%) 50 | 100 . . . 12 . . 39 . . Volleys Fired 143 | 11 40 17 . 11 4 17 31 . 12 Largest 2 | 2 2 2 . 2 2 2 2 . 2 Hottest 138 | 40 60 65 . 93 125 103 110 . 138 Shots Fired 251 | 22 80 34 . 17 8 25 47 . 18 Gun 184 | 22 80 34 . 14 7 . 9 . 18 Cannon 67 | . . . . 3 1 25 38 . . Launcher . | . . . . . . . . . . Special . | . . . . . . . . . . Kinetic 173 | 22 78 17 . 7 4 17 28 . . Thermal 57 | . . . . 8 4 8 19 . 18 Explosive . | . . . . . . . . . . Electromagnetic 21 | . 2 17 . 2 . . . . . Robot Hit Streak 11 | 5 11 8 . 2 7 4 8 . 6 Robot Miss Streak 3 | 2 3 3 . 2 2 2 2 . 2 Penetration Max . | . . . . . . . . . . Secondary Targets 2 | . 1 1 . . . . . . . Max Gunslinging Chain 1 | . 1 1 . . . . . . . Shots Hit Robots 190 | 13 54 27 . 21 6 15 34 1 19 Core Hits 74 | 2 18 10 . 3 2 7 17 . 15 Critical Kills . | . . . . . . . . . . Critical Parts Destroyed . | . . . . . . . . . . Critical Strikes 2 | . . . . 1 . . . . 1 Burn 1 | . . . . 1 . . . . . Sever 1 | . . . . . . . . . 1 Melee Attacks 26 | . . . . 13 . . 3 1 9 Impact . | . . . . . . . . . . Slashing 10 | . . . . . . . . 1 9 Piercing . | . . . . . . . . . . Sneak Attacks 17 | . . . . 13 . . 3 1 . Combat Hostiles 11 | . . . . 11 . . . . . Follow-up Attacks . | . . . . . . . . . . Damage Inflicted 4131 | 126 634 574 . 185 114 743 1157 88 510 Guns 1858 | 126 634 359 . 129 114 . 190 . 306 Cannons 1757 | . . . . 53 . 743 961 . . Explosions 210 | . . 210 . . . . . . . Melee 268 | . . . . . . . . 88 180 Ramming 38 | . . 5 . 3 . . 6 . 24 Kinetic 2480 | 126 634 150 . 76 55 579 860 . . Thermal 1121 | . . 210 . 91 59 164 291 . 306 Explosive . | . . . . . . . . . . Electromagnetic 224 | . . 209 . 15 . . . . . Impact . | . . . . . . . . . . Slashing 268 | . . . . . . . . 88 180 Piercing . | . . . . . . . . . . Highest Corruption 7 | . . . . . . . 7 2 2 Average Corruption 3 | . . . . . . . 6 2 2 Corruption Purged . | . . . . . . . . . . Corruption Blocked . | . . . . . . . . . . Effects 5 | . . . . . . . 4 . 1 Message Errors 1 | . . . . . . . 1 . . Matter Fused 1 | . . . . . . . 1 . . Heat Flow Errors 1 | . . . . . . . 1 . . Energy Discharges 1 | . . . . . . . 1 . . Data Loss (minor) 1 | . . . . . . . . . 1 Overload Shots . | . . . . . . . . . . Overflow Damage 107 | . . . . . . 49 . 58 . Projectiles 49 | . . . . . . 49 . . . Explosions . | . . . . . . . . . . Melee 58 | . . . . . . . . 58 . Knockbacks 9 | . . . . . . 4 5 . . Impact . | . . . . . . . . . . Kinetic 8 | . . . . . . 4 4 . . Secondary 1 | . . . . . . . 1 . . Self-Inflicted Damage 36 | . . 26 . . . . . . 10 Shots 1 | . . 1 . . . . . . . Rammed 11 | . . 1 . . . . . . 10 Targets Rammed 15 | . . 1 . 1 . . 3 . 10 Kicked 4 | . . . . 1 . . 3 . . Crushed . | . . . . . . . . . . Highest Temperature 170 | . 59 105 . 170 48 62 139 . 144 Average Temperature 37 | . 19 55 . 42 22 31 39 . 49 Received Heat Transfer 1267 | . 297 174 12 . 18 162 361 9 234 Siege Activations . | . . . . . . . . . . Robots Corrupted . | . . . . . . . . . . Combat Hostiles . | . . . . . . . . . . Parts Fried . | . . . . . . . . . . Impact Corruptions . | . . . . . . . . . . Robots Melted . | . . . . . . . . . . Combat Hostiles . | . . . . . . . . . . Parts Melted 2 | . . . . . . . . . 2 Heat Transferred 1927 | . . 300 . 250 . 185 600 . 592 Parts Sabotaged . | . . . . . . . . . . Parts Stolen . | . . . . . . . . . . Parts Stripped . | . . . . . . . . . . Power Chain Reactions 3 | . . 3 . . . . . . . Alert | -11 -10 -10 -10 -8 -6 -6 -6 -5 -5 ------- Run | Yrd Mat Min Sub Rec Fac Low Low Fac Upp Peak Influence 375 | 5 163 325 . 203 375 . . 80 . Initial 360 | . 3 63 . 36 360 . . 65 . Average 117 | . 94 220 . 50 339 . . 73 . Maximum Alert Level 1 | . . 1 . 1 1 . . . . Low Security (%) 74 | 100 100 39 . 86 . . . 100 . Level 1 25 | . . 60 . 13 100 . . . . Level 2 . | . . . . . . . . . . Level 3 . | . . . . . . . . . . Level 4 . | . . . . . . . . . . Level 5 . | . . . . . . . . . . High Security . | . . . . . . . . . . Max Security . | . . . . . . . . . . Squads Dispatched 3 | . 2 . . . . . 1 . . Investigation . | . . . . . . . . . . Extermination . | . . . . . . . . . . Reinforcement 2 | . 2 . . . . . . . . Assault 1 | . . . . . . . 1 . . Garrison . | . . . . . . . . . . Intercept . | . . . . . . . . . . Searches Triggered . | . . . . . . . . . . Construction Impeded . | . . . . . . . . . . Haulers Reinforced . | . . . . . . . . . . Active Scanning Responses . | . . . . . . . . . . Cargo Convoy Interrupts . | . . . . . . . . . . Stealth | -11 -10 -10 -10 -8 -6 -6 -6 -5 -5 --------- Run | Yrd Mat Min Sub Rec Fac Low Low Fac Upp Distress Signals 3 | . 2 . . 1 . . . . . Communications Jammed . | . . . . . . . . . . Distress Signals . | . . . . . . . . . . Times Spotted 83 | . 17 7 8 8 2 8 20 1 12 Peak Tracking Total 12 | . 3 7 4 3 1 8 12 1 6 Tactical Retreats 11 | . . 1 2 . . 1 5 . 2 Traps | -11 -10 -10 -10 -8 -6 -6 -6 -5 -5 ------- Run | Yrd Mat Min Sub Rec Fac Low Low Fac Upp Traps Triggered 3 | . . . 2 . . . . 1 . Indirectly . | . . . . . . . . . . Trap Hack Attempts . | . . . . . . . . . . Triggered . | . . . . . . . . . . Disarmed . | . . . . . . . . . . Reprogrammed . | . . . . . . . . . . Reused . | . . . . . . . . . . Traps Extracted . | . . . . . . . . . . Installed . | . . . . . . . . . . Triggered . | . . . . . . . . . . Machines | -11 -10 -10 -10 -8 -6 -6 -6 -5 -5 ---------- Run | Yrd Mat Min Sub Rec Fac Low Low Fac Upp Machines Disabled 1 | . . . . . . . 1 . . Max in Single Turn 1 | . . . . . . . 1 . . Garrison Access 1 | . . . . . 1 . . . . Machines Repaired . | . . . . . . . . . . Machines Dismantled . | . . . . . . . . . . Machines Sabotaged . | . . . . . . . . . . Overloaded Fab Kills . | . . . . . . . . . . Hacking | -11 -10 -10 -10 -8 -6 -6 -6 -5 -5 --------- Run | Yrd Mat Min Sub Rec Fac Low Low Fac Upp Machines Accessed 15 | . 5 1 . 8 1 . . . . Terminals 6 | . 4 . . 2 . . . . . Fabricators . | . . . . . . . . . . Repair Stations 1 | . 1 . . . . . . . . Recycling Units 5 | . . . . 5 . . . . . Scanalyzers . | . . . . . . . . . . Garrison Access 1 | . . . . . 1 . . . . Total Hacks 35 | . 14 1 . 19 1 . . . . Successful 15 | . 3 1 . 10 1 . . . . Failed 20 | . 11 . . 9 . . . . . Catastrophic 2 | . 1 . . 1 . . . . . Database Lockouts . | . . . . . . . . . . Manual 17 | . 11 . . 6 . . . . . Terminals 18 | . 11 . . 7 . . . . . Fabricators . | . . . . . . . . . . Repair Stations 3 | . 3 . . . . . . . . Recycling Units 10 | . . . . 10 . . . . . Scanalyzers . | . . . . . . . . . . Garrison Access 1 | . . . . . 1 . . . . Terminal Hacks 7 | . 2 1 . 4 . . . . . Open Door 1 | . . 1 . . . . . . . Branch Access Points 1 | . 1 . . . . . . . . Hauler Manifests 1 | . 1 . . . . . . . . Zone Layout 2 | . . . . 2 . . . . . Release Object 2 | . . . . 2 . . . . . Fabricator Hacks . | . . . . . . . . . . Repair Station Hacks 1 | . 1 . . . . . . . . Scan Component 1 | . 1 . . . . . . . . Recycling Unit Hacks 2 | . . . . 2 . . . . . Retrieve Components 2 | . . . . 2 . . . . . Scanalyzer . | . . . . . . . . . . Garrison Access Hacks 1 | . . . . . 1 . . . . Seal Access 1 | . . . . . 1 . . . . Unauthorized Hacks 4 | . . . . 4 . . . . . Terminals . | . . . . . . . . . . Fabricators . | . . . . . . . . . . Repair Stations . | . . . . . . . . . . Recycling Units 4 | . . . . 4 . . . . . Tunnel 4 | . . . . 4 . . . . . Scanalyzers . | . . . . . . . . . . Garrison Access . | . . . . . . . . . . Data Cores Recovered . | . . . . . . . . . . Used . | . . . . . . . . . . Hacking Detections 8 | . 4 . . 4 . . . . . Full Trace Events 5 | . 2 . . 3 . . . . . Feedback Events . | . . . . . . . . . . Feedback Blocked . | . . . . . . . . . . Robot Schematics Acquired . | . . . . . . . . . . Robots Built . | . . . . . . . . . . Authchips . | . . . . . . . . . . Time . | . . . . . . . . . . Total Robot Build Rating . | . . . . . . . . . . Part Schematics Acquired . | . . . . . . . . . . Parts Built . | . . . . . . . . . . Authchips . | . . . . . . . . . . Time . | . . . . . . . . . . Total Part Build Rating . | . . . . . . . . . . Parts Repaired . | . . . . . . . . . . Time . | . . . . . . . . . . Parts Recycled . | . . . . . . . . . . Recycled Matter . | . . . . . . . . . . Retrieved Matter . | . . . . . . . . . . Retrieved Components 7 | . . . . 7 . . . . . Parts Scanalyzed . | . . . . . . . . . . Part Schematics Acquired . | . . . . . . . . . . Parts Damaged . | . . . . . . . . . . Bothacking | -11 -10 -10 -10 -8 -6 -6 -6 -5 -5 ------------ Run | Yrd Mat Min Sub Rec Fac Low Low Fac Upp Used RIF Installer . | . . . . . . . . . . Robots Hacked 1 | . . . . 1 . . . . . Non-combat 1 | . . . . 1 . . . . . Combat . | . . . . . . . . . . Robot Hacks Applied 1 | . . . . 1 . . . . . find_recycling 1 | . . . . 1 . . . . . Relay Couplers Released . | . . . . . . . . . . Fabnet Peak Effective % . | . . . . . . . . . . Robots Rewired 17 | . . . . 15 . . 2 . . Allies Hacked . | . . . . . . . . . . Hacks Repelled . | . . . . . . . . . . Allies | -11 -10 -10 -10 -8 -6 -6 -6 -5 -5 -------- Run | Yrd Mat Min Sub Rec Fac Low Low Fac Upp Total Allies 17 | . . . . 15 . . 2 . . Largest Group 10 | . . . . 10 4 . 2 . . Highest-Rated Group 126 | . . . . 126 57 . 58 . . Highest-Rated Ally 34 | . . . . 34 21 . 29 . . Total Orders 20 | . . 7 8 5 . . . . . FOLLOW 2 | . . 1 . 1 . . . . . TUNNEL 1 | . . . . 1 . . . . . EXPLORE 6 | . . 4 2 . . . . . . RETURN 11 | . . 2 6 3 . . . . . Ally Attacks 184 | . . 10 85 78 4 . 7 . . Total Damage 1358 | . . 20 392 726 108 . 112 . . Kills 22 | . . 1 10 9 . . 2 . . Allies Corrupted . | . . . . . . . . . . Allies Melted 1 | . . . . 1 . . . . . Intel | -11 -10 -10 -10 -8 -6 -6 -6 -5 -5 ------- Run | Yrd Mat Min Sub Rec Fac Low Low Fac Upp Robot Analysis Total . | . . . . . . . . . . Derelict Logs Recovered 6 | . . 2 1 . . 1 2 . . Drone Launches 53 | . . 8 27 18 . . . . . Drone Recoveries 51 | . . 8 27 16 . . . . . Exploration | -11 -10 -10 -10 -8 -6 -6 -6 -5 -5 ------------- Run | Yrd Mat Min Sub Rec Fac Low Low Fac Upp Turns Passed 6500 | 74 769 512 1013 1485 358 671 1248 190 180 Spaces Moved 3888 | 54 386 255 565 872 249 488 658 264 97 Core 395 | 51 15 . . 106 . . 134 64 25 Treads 1535 | 3 371 255 565 341 . . . . . Legs 1747 | . . . . 425 249 488 524 . 61 Wheels 211 | . . . . . . . . 200 11 Hover . | . . . . . . . . . . Flight . | . . . . . . . . . . Fastest Speed 50 | 50 50 160 160 50 130 130 50 50 50 Average Speed 140 | 56 156 160 160 132 130 130 173 62 98 Slowest Speed 350 | 160 350 160 160 160 130 130 290 67 120 Overloaded Moves . | . . . . . . . . . . Propulsion Burnouts . | . . . . . . . . . . Robots Hopped . | . . . . . . . . . . Cave-ins Triggered . | . . . . . . . . . . Exploration Rate (%) 53 | 4 64 99 71 98 7 75 90 7 17 Regions Visited 9 Branch Regions 6 Pre-discovered Areas 4 | . . . . 4 . . . . . Known Exits Taken 4 | . 1 1 1 . . 1 . . . Unknown Exits Taken 5 | 1 . . . 1 1 . 1 1 . Scrap Searched 8 | . . 1 . . . 3 4 . . Spaces Dug . | . . . . . . . . . . Terrain Destroyed 31 | . . 13 . 1 1 7 9 . . Melee . | . . . . . . . . . . Projectile 18 | . . . . 1 1 7 9 . . AOE 13 | . . 13 . . . . . . . Terrain Rammed . | . . . . . . . . . . Walls Destroyed . | . . . . . . . . . . Machines Disabled . | . . . . . . . . . . Actions | -11 -10 -10 -10 -8 -6 -6 -6 -5 -5 --------- Run | Yrd Mat Min Sub Rec Fac Low Low Fac Upp Total 4678 | 77 478 327 672 1189 277 504 725 284 145 Wait 397 | . 15 35 87 201 15 . 17 15 12 Move 3879 | 53 385 254 564 871 248 487 657 263 97 Hop . | . . . . . . . . . . Pick Up 47 | 9 15 3 4 4 7 . 3 2 . Fast Attach 13 | . 2 1 . 1 . . 3 1 5 Attach 22 | 4 5 1 3 3 3 . 2 1 . Detach 1 | . . 1 . . . . . . . Swap 25 | . 6 6 6 5 . . 1 1 . Drop 48 | . 10 8 8 17 . . 5 . . Fire 143 | 11 40 17 . 11 4 17 31 . 12 Melee 26 | . . . . 13 . . 3 1 9 Ram 10 | . . . . . . . . . 10 Kick 4 | . . . . 1 . . 3 . . Crush 1 | . . 1 . . . . . . . Escape Stasis . | . . . . . . . . . . Rewire 62 | . . . . 62 . . . . . Trap . | . . . . . . . . . . Miscellaneous . | . . . . . . . . . . Route ------- -11/Scrapyard -10/Materials (discovered 2 exits: [*Mat] / *Min) -10/Mines (discovered 4 exits: [*Mat x2] / [*Exi] / *Sub) -10/Subcaves (discovered 3 exits: *Mat x2 / *Rec) -8/Recycling -6/Factory -6/Lower Caves -6/Lower Caves (discovered 2 exits: [*Fac] / [*Zio]) -5/Factory -5/Upper Caves History --------- Turn | Location | Event 18 | -11/Scrapyard | Discovered new exit (range 15) 75 | -11/Scrapyard | Entered Materials 316 | -10/Materials | Build established: Mutant 499 | -10/Materials | Discovered new exit (range 3) 546 | -10/Materials | Identified exit to Mines 844 | -10/Materials | Entered Mines 872 | -10/Mines | Found the Drone Emporium 879 | -10/Mines | Found Prototype Device 879 | -10/Mines | Identified Thief Drone Bay 895 | -10/Mines | Met a Derelict bent on vengeance 896 | -10/Mines | Discovered new exit (range 32) 908 | -10/Mines | Discovered new exit (range 59) 943 | -10/Mines | Core integrity fell below 50% 976 | -10/Mines | Found a hidden stash of uninstalled traps 1012 | -10/Mines | Discovered new exit (range 50) 1132 | -10/Mines | Learned 8 Materials zone layouts 1286 | -10/Mines | Identified exit to Subcaves 1356 | -10/Mines | Entered Subcaves 1382 | -10/Subcaves | Discovered new exit (range 73) 1454 | -10/Subcaves | Shifting Twisted Machinery released Slug Cannon 1454 | -10/Subcaves | Shifting Twisted Machinery released Barrage Gun 1679 | -10/Subcaves | Shifting Twisted Machinery released Barrage Gun 1682 | -10/Subcaves | Shifting Twisted Machinery released Battle Cannon 1797 | -10/Subcaves | Discovered new exit (range 13) 1799 | -10/Subcaves | Discovered new exit (range 17) 1818 | -10/Subcaves | Learned 2 Materials zone layouts 1907 | -10/Subcaves | Shifting Twisted Machinery released Sub. Power Source 1915 | -10/Subcaves | Shifting Twisted Machinery released Battle Rifle 2328 | -10/Subcaves | Identified exit to Recycling 2342 | -10/Subcaves | Identified exit to Materials 2369 | -10/Subcaves | Entered Recycling 2873 | -8/Recycling | Core integrity fell below 20% 2891 | -8/Recycling | Build established: Commander-Mutant 2903 | -8/Recycling | Lost 6 allies 2937 | -8/Recycling | Scanned before Scraplab entrance 2960 | -8/Recycling | Entered Scraplab 3040 | -8/Recycling | Angered Scraplab inhabitants 3043 | -8/Recycling | Found Prototype Device 3073 | -8/Recycling | Identified Scrap Engine 3134 | -8/Recycling | Lost 6 allies 3499 | -8/Recycling | Build established: Commander-Construct 3795 | -8/Recycling | Discovered new exit (range 16) 3854 | -8/Recycling | Entered Factory 3854 | -6/Factory | Accompanied by 4 allies 3854 | -6/Factory | Evolved 8 slots: Power x1, Propulsion x3, Utility x3, Weapon x1 3966 | -6/Factory | Lost 4 allies 4130 | -6/Factory | Discovered new exit (range 9) 4212 | -6/Factory | Entered Lower Caves 4227 | -6/Lower Caves | Build established: Construct 4245 | -6/Lower Caves | Spotted B-75 Beast 4289 | -6/Lower Caves | Attracted the attention of an 0b10 outpost 4368 | -6/Lower Caves | Lost 4 parts (1p1n1u1w) 4564 | -6/Lower Caves | Identified exit to Lower Caves 4626 | -6/Lower Caves | Build established: Mutant 4883 | -6/Lower Caves | Entered another Lower Caves area 4896 | -6/Lower Caves | Encountered a Warlord checkpoint 4907 | -6/Lower Caves | Learned 4 Factory zone layouts 4930 | -6/Lower Caves | Discovered new exit (range 9) 4991 | -6/Lower Caves | Attracted the attention of an 0b10 checkpoint 5327 | -6/Lower Caves | Learned Factory emergency access door positions 5344 | -6/Lower Caves | Discovered new exit (range 11) 5499 | -6/Lower Caves | Build established: Construct 6018 | -6/Lower Caves | Attracted the attention of an 0b10 outpost 6061 | -6/Lower Caves | Core integrity fell below 50% 6108 | -6/Lower Caves | Lost 8 parts (1p2n3u2w) 6131 | -6/Lower Caves | Entered Factory 6131 | -5/Factory | Evolved 2 slots: Propulsion x1, Weapon x1 6162 | -5/Factory | Discovered new exit (range 8) 6321 | -5/Factory | Entered Upper Caves 6347 | -5/Upper Caves | Build established: Mutant 6396 | -5/Upper Caves | Lost 5 parts (1n3u1w) 6479 | -5/Upper Caves | Core integrity fell below 50% 6492 | -5/Upper Caves | Core integrity fell below 20% 6501 | -5/Upper Caves | Destroyed by H-66 Slayer with Gauss Rifle Last Messages --------------- 06428_ System corrupted: Component data lost. 06468_ Penetrated by Slug. 06468_ Lgt. Angular Momentum Engine destroyed. 06468_ Penetrated by Slug. 06468_ Slug penetrates Wall. 06471_ Penetrated by Slug. 06475_ Carbon-fiber Leg destroyed. 06475_ Penetrated by Slug. 06476_ S-27 Virus destroyed. 06476_ Hvy. Laser destroyed. 06478_ Penetrated by Slug. 06479_ Carbon-fiber Leg destroyed. 06481_ Penetrated by Slug. 06484_ Hvy. Laser destroyed. 06485_ Penetrated by Slug. 06486_ Lgt. Nuclear Core fries itself beyond repair. 06486_ VTOL Module fries itself beyond repair. 06493_ Slug penetrates Wall. 06498_ Penetrated by Slug. 06498_ Slug penetrates Wall. Map ----- +----------------------------------------------------+ | ?????????????????????????????## ## | | ???????????????????????????### ## ### | | ??????????????????????????## ## #?? | | ??????????????????????????# #### ### | | ??????????????????????????# ##?## | | ??????????????????????????## ##?## | | ???????????????????????????### #?# ### | | ??????????????????????????##### ## ###?## | | ?????????????????????????## ### #????## | | ????????????????????###### ### ##???## | | ???????????????????? #?## ##?#### | | ????????????????????? #??# ###??# | | ???????????????????????? ##?# ##??# | | ???????????????????????##?# ### ##?# | | ?????????????????????## #??# %[ #?# # | | ?????????????????????# #??# *% #?# # | | ?????????????????????# #?## ##?# ? | | ????????????????????## #?# ####??# #? | | ????????????????????# #??# ##?????## ?? | | ???????????????????## #??# ##???????## ?? | | ???????????????????# ##?## ##?????????# ?? | | ???????????????????# ##?#hh #####?????? #?? | | ???????????????????# s### #?????# #??? | | ???????????????????# s ##???????????? | | ???????????????????# #?????????? | | ???????????????????## @ #????????? | | ????????????????????#### ##????????? | | ???????????????????????# #?????????? | | ???????????????????????# ????????? | | ???????????????????????# #### ???????? | | ???????????????????????######??? ????????? | | ???????????????????????????????? ### ????????? | | ????????????????????????????????####??##?????????? | | ?????????????????????????????????????????????????? | | ?????????????????????????????????????????????????? | | ?????????????????????????????????????????????????? | | ?????????????????????????????????????????????????? | | ?????????????????????????????????????????????????? | | ?????????????????????????????????????????????????? | | ?????????????????????????????????????????????????? | | ?????????????????????????????????????????????????? | | ?????????????????????????????????????????????????? | | ?????????????????????????????????????????????????? | | ?????????????????????????????????????????????????? | | ?????????????????????????????????????????????????? | | ?????????????????????????????????????????????????? | | ?????????????????????????????????????????????????? | | ?????????????????????????????????????????????????? | | ?????????????????????????????????????????????????? | | | +----------------------------------------------------+ Best States ------------- Heat Dissipation 94 Energy Generation 18 Energy Capacity 257 Matter Stores 300 Matter Capacity 300 Sight Range 16 Robot Scan Range 16 Terrain Scan Density 10 Armor Coverage 150 Resistance: KI 20 Evasion (%) 55 Recoil Reduction 2 Energy Filtering 30 Item Schematics ----------------- None Robot Schematics ------------------ None Fabricated ------------ Nothing Alien Tech Used ----------------- None Achievements -------------- None Challenges ------------ None Game ------ Seed ScanMakeshiftWings Manual? 0 Play Time 00:48:59 Cumulative 60.3 hours Start 2025.01.18 @ 22:49:05 End 2025.01.18 @ 23:36:43 Sessions 1 Manual Loads 0 Difficulty Rogue Special Mode None Game No. 121 Rogue 121 Adventurer 0 Explorer 0 Win Type - Total 0 Types 0/0/0/0/0/0/0/0/0 Lore% 21 Gallery% 37 Achievement% 31 Wizard Run 0 Options --------- Layout 0 ASCII 0 Keyboard 0 Movement Mouse Keybinds 0 Fullscreen 1 Font 24/Smallcaps Map View 76x50 Zoom Use 0% Tactical HUD 1 Map Filters NONE Filters NONE Steam 1 RUN: 440b4d45-7cac-4f53-84fb-b2a11e619dca